[Event "*** Titled Tuesday Blitz"]
[Site "Chess.com"]
[Date "2021.04.20"]
[Round "6"]
[White "MerryPoppies"]
[Black "rachidhuilda"]
[Result "0-1"]
[WhiteElo "2124"]
[BlackElo "2286"]
[TimeControl "180+1"]
[EndTime "11:06:48 PDT"]
[Termination "rachidhuilda won by checkmate"]

1. d4 {[%clk 0:03:00.9]} 1... Nf6 {[%clk 0:02:59.4]} 2. c4 {[%clk 0:03:00.8]}
2... c5 {[%clk 0:03:00]} 3. Nf3 {[%clk 0:02:59.8]} 3... cxd4 {[%clk 0:02:59.5]}
4. Nxd4 {[%clk 0:02:59.9]} 4... e5 {[%clk 0:02:59.6]} 5. Nf3 {[%clk 0:02:59.5]}
5... Nc6 {[%clk 0:02:58.8]} 6. Nc3 {[%clk 0:02:59.6]} 6... Bc5 {[%clk 0:02:38]}
7. e3 {[%clk 0:02:48.6]} 7... O-O {[%clk 0:02:26.8]} 8. a3 {[%clk 0:02:48.3]}
8... e4 {[%clk 0:02:26.2]} 9. Nd4 {[%clk 0:02:46.6]} 9... a5 {[%clk 0:01:55.5]}
10. Ncb5 {[%clk 0:02:09.2]} 10... d6 {[%clk 0:01:44.7]} 11. b3 {[%clk
0:02:02.1]} 11... Bg4 {[%clk 0:01:41.2]} 12. Be2 {[%clk 0:01:58.4]} 12... Ne5
{[%clk 0:01:34.5]} 13. O-O {[%clk 0:01:46.3]} 13... Qe7 {[%clk 0:01:16.7]} 14.
Bb2 {[%clk 0:01:32.9]} 14... Bxe2 {[%clk 0:01:13.9]} 15. Qxe2 {[%clk 0:01:32.2]}
15... g6 {[%clk 0:01:04.7]} 16. Rad1 {[%clk 0:01:30]} 16... Nd3 {[%clk
0:01:01.1]} 17. Ba1 {[%clk 0:01:29.1]} 17... h5 {[%clk 0:00:57.3]} 18. f4 {[%clk
0:01:19.5]} 18... Ng4 {[%clk 0:00:49.8]} 19. f5 {[%clk 0:01:12.3]} 19... Qg5
{[%clk 0:00:46.7]} 20. Nc7 {[%clk 0:00:46.1]} 20... Rac8 {[%clk 0:00:38.1]} 21.
Nd5 {[%clk 0:00:45.8]} 21... Nde5 {[%clk 0:00:22.2]} 22. h3 {[%clk 0:00:39]}
22... Nf6 {[%clk 0:00:22.2]} 23. Ne7+ {[%clk 0:00:33.2]} 23... Kh7 {[%clk
0:00:20.6]} 24. Nxc8 {[%clk 0:00:33.3]} 24... Rxc8 {[%clk 0:00:20.9]} 25. Nc2
{[%clk 0:00:26.6]} 25... h4 {[%clk 0:00:16.5]} 26. Bxe5 {[%clk 0:00:24.2]} 26...
dxe5 {[%clk 0:00:17.4]} 27. Rfe1 {[%clk 0:00:19.4]} 27... Nh5 {[%clk 0:00:17.2]}
28. fxg6+ {[%clk 0:00:19.1]} 28... fxg6 {[%clk 0:00:17.1]} 29. Qg4 {[%clk
0:00:19.4]} 29... Qxg4 {[%clk 0:00:14.6]} 30. hxg4 {[%clk 0:00:19.6]} 30... Ng3
{[%clk 0:00:10.5]} 31. Rd7+ {[%clk 0:00:19.2]} 31... Kh6 {[%clk 0:00:10.3]} 32.
Kh2 {[%clk 0:00:19]} 32... Kg5 {[%clk 0:00:09.9]} 33. Red1 {[%clk 0:00:18.7]}
33... Bxe3 {[%clk 0:00:09]} 34. Nxe3 {[%clk 0:00:18.6]} 34... Rf8 {[%clk
0:00:07.3]} 35. Rxb7 {[%clk 0:00:17.2]} 35... Rf2 {[%clk 0:00:07.1]} 36. Rb5
{[%clk 0:00:16.1]} 36... Re2 {[%clk 0:00:07.4]} 37. Rxe5+ {[%clk 0:00:16.2]}
37... Kf6 {[%clk 0:00:07.7]} 38. Red5 {[%clk 0:00:13.4]} 38... Rxe3 {[%clk
0:00:07.7]} 39. Rd6+ {[%clk 0:00:13.5]} 39... Kg7 {[%clk 0:00:07.6]} 40. Rd7+
{[%clk 0:00:13.6]} 40... Kh6 {[%clk 0:00:07.5]} 41. R1d6 {[%clk 0:00:12.7]}
41... Kg5 {[%clk 0:00:06.6]} 42. Rd8 {[%clk 0:00:11.8]} 42... Re2 {[%clk
0:00:05.4]} 43. Rd5+ {[%clk 0:00:11.9]} 43... Kf4 {[%clk 0:00:05.2]} 44. Rf8+
{[%clk 0:00:11.6]} 44... Ke3 {[%clk 0:00:05.6]} 45. Rd2 {[%clk 0:00:11.6]} 45...
Nf1+ {[%clk 0:00:05.2]} 46. Kg1 {[%clk 0:00:11.4]} 46... Nxd2 {[%clk 0:00:06.1]}
47. Re8 {[%clk 0:00:11.4]} 47... Nxb3 {[%clk 0:00:06.3]} 48. Re6 {[%clk
0:00:10.7]} 48... Nd4 {[%clk 0:00:06.4]} 49. Rxg6 {[%clk 0:00:10.6]} 49... Re1+
{[%clk 0:00:06.5]} 50. Kh2 {[%clk 0:00:10.8]} 50... Rc1 {[%clk 0:00:06.8]} 51.
Rd6 {[%clk 0:00:10.6]} 51... Rxc4 {[%clk 0:00:06.7]} 52. g5 {[%clk 0:00:10.8]}
52... Nf5 {[%clk 0:00:06.9]} 53. Rd8 {[%clk 0:00:10.5]} 53... Ng3 {[%clk
0:00:07]} 54. g6 {[%clk 0:00:10.5]} 54... Rc1 {[%clk 0:00:07]} 55. Kh3 {[%clk
0:00:10.2]} 55... Kf4 {[%clk 0:00:07]} 56. Rf8+ {[%clk 0:00:10]} 56... Kg5
{[%clk 0:00:04.4]} 57. Rf5+ {[%clk 0:00:04.1]} 57... Nxf5 {[%clk 0:00:04.8]} 58.
g7 {[%clk 0:00:03.9]} 58... Rh1# {[%clk 0:00:03.7]} 0-1

[Event "*** Titled Tuesday Blitz"]
[Site "Chess.com"]
[Date "2021.04.20"]
[Round "6"]
[White "Joseacorrea"]
[Black "BvsN"]
[Result "0-1"]
[WhiteElo "2070"]
[BlackElo "2368"]
[TimeControl "180+1"]
[EndTime "11:06:49 PDT"]
[Termination "BvsN won by checkmate"]

1. d4 {[%clk 0:03:00.9]} 1... d5 {[%clk 0:02:59.7]} 2. e3 {[%clk 0:03:01]} 2...
Nf6 {[%clk 0:02:55.6]} 3. Bd3 {[%clk 0:03:00.9]} 3... Nc6 {[%clk 0:02:55.8]} 4.
f4 {[%clk 0:03:01.1]} 4... Bg4 {[%clk 0:02:55.9]} 5. Nf3 {[%clk 0:03:01]} 5...
e6 {[%clk 0:02:56.4]} 6. c3 {[%clk 0:03:00.2]} 6... Bd6 {[%clk 0:02:55.9]} 7.
O-O {[%clk 0:03:00.7]} 7... O-O {[%clk 0:02:56]} 8. Nbd2 {[%clk 0:03:00.8]} 8...
Ne7 {[%clk 0:02:56.1]} 9. Qe1 {[%clk 0:03:00.8]} 9... c5 {[%clk 0:02:56]} 10.
Ne5 {[%clk 0:03:00.2]} 10... Bf5 {[%clk 0:02:54.1]} 11. Bxf5 {[%clk 0:02:59.8]}
11... exf5 {[%clk 0:02:50.3]} 12. Rf3 {[%clk 0:02:55.3]} 12... Ne4 {[%clk
0:02:41.6]} 13. Rh3 {[%clk 0:02:51.8]} 13... f6 {[%clk 0:02:36.9]} 14. Nef3
{[%clk 0:02:48.5]} 14... Ng6 {[%clk 0:02:27.4]} 15. Nh4 {[%clk 0:02:43.5]} 15...
Qd7 {[%clk 0:02:11.7]} 16. Ndf3 {[%clk 0:02:40.1]} 16... Kf7 {[%clk 0:02:05.9]}
17. Bd2 {[%clk 0:02:07.9]} 17... Rae8 {[%clk 0:02:04.3]} 18. Nxg6 {[%clk
0:02:01.8]} 18... hxg6 {[%clk 0:02:03.9]} 19. Rd1 {[%clk 0:01:52.2]} 19... Rh8
{[%clk 0:02:03.6]} 20. Rxh8 {[%clk 0:01:47.6]} 20... Rxh8 {[%clk 0:02:03.7]} 21.
Qe2 {[%clk 0:01:42.1]} 21... Qe7 {[%clk 0:01:50.3]} 22. Be1 {[%clk 0:01:39.6]}
22... c4 {[%clk 0:01:49.5]} 23. Bh4 {[%clk 0:01:33.2]} 23... g5 {[%clk
0:01:30.9]} 24. fxg5 {[%clk 0:01:26.5]} 24... fxg5 {[%clk 0:01:30.9]} 25. Bf2
{[%clk 0:01:10]} 25... g4 {[%clk 0:01:28.8]} 26. Nh4 {[%clk 0:00:50.9]} 26...
Rxh4 {[%clk 0:01:24.2]} 27. Bxh4 {[%clk 0:00:51.8]} 27... Qxh4 {[%clk
0:01:23.7]} 28. g3 {[%clk 0:00:50.9]} 28... Qh3 {[%clk 0:01:09.5]} 29. Rf1
{[%clk 0:00:42.2]} 29... g6 {[%clk 0:01:09.3]} 30. Qg2 {[%clk 0:00:39.1]} 30...
Qxg2+ {[%clk 0:01:06.7]} 31. Kxg2 {[%clk 0:00:40]} 31... Ng5 {[%clk 0:01:03.7]}
32. b3 {[%clk 0:00:33.9]} 32... Ne4 {[%clk 0:00:54]} 33. bxc4 {[%clk 0:00:29.5]}
33... dxc4 {[%clk 0:00:52.6]} 34. Rc1 {[%clk 0:00:23.2]} 34... Bc7 {[%clk
0:00:51.6]} 35. Rb1 {[%clk 0:00:20.3]} 35... b6 {[%clk 0:00:46]} 36. Rb4 {[%clk
0:00:20]} 36... Nd6 {[%clk 0:00:37.4]} 37. h3 {[%clk 0:00:18.6]} 37... a5 {[%clk
0:00:37.5]} 38. Rb1 {[%clk 0:00:14.6]} 38... gxh3+ {[%clk 0:00:38.4]} 39. Kxh3
{[%clk 0:00:14.1]} 39... Ne4 {[%clk 0:00:37.1]} 40. g4 {[%clk 0:00:12.5]} 40...
Nf2+ {[%clk 0:00:30.7]} 41. Kg2 {[%clk 0:00:11.9]} 41... Nxg4 {[%clk 0:00:30.6]}
42. Kf3 {[%clk 0:00:12.8]} 42... Nf6 {[%clk 0:00:27]} 43. Rd1 {[%clk 0:00:10.3]}
43... Ke6 {[%clk 0:00:26.7]} 44. a4 {[%clk 0:00:07.6]} 44... Ne4 {[%clk
0:00:25.6]} 45. d5+ {[%clk 0:00:05.5]} 45... Kd6 {[%clk 0:00:24]} 46. Rd4 {[%clk
0:00:06]} 46... Nxc3 {[%clk 0:00:20.2]} 47. Rxc4 {[%clk 0:00:06.1]} 47... Nxd5
{[%clk 0:00:20.5]} 48. Rd4 {[%clk 0:00:06.5]} 48... Kc5 {[%clk 0:00:19.5]} 49.
Rh4 {[%clk 0:00:04.8]} 49... Nc3 {[%clk 0:00:16.5]} 50. Rh7 {[%clk 0:00:03.3]}
50... Be5 {[%clk 0:00:15.7]} 51. Re7 {[%clk 0:00:01.1]} 51... Kd6 {[%clk
0:00:15.8]} 52. Rf7 {[%clk 0:00:01.2]} 52... Nxa4 {[%clk 0:00:15.6]} 53. Rb7
{[%clk 0:00:01.6]} 53... Kc6 {[%clk 0:00:13.3]} 54. Ra7 {[%clk 0:00:01.9]} 54...
Nc5 {[%clk 0:00:13]} 55. Rh7 {[%clk 0:00:02.8]} 55... a4 {[%clk 0:00:12.9]} 56.
e4 {[%clk 0:00:02.7]} 56... fxe4+ {[%clk 0:00:12.3]} 57. Ke3 {[%clk 0:00:02.3]}
57... a3 {[%clk 0:00:12.7]} 58. Rh6 {[%clk 0:00:02.8]} 58... a2 {[%clk
0:00:12.2]} 59. Rxg6+ {[%clk 0:00:03.3]} 59... Kb5 {[%clk 0:00:12.6]} 60. Rg1
{[%clk 0:00:01.9]} 60... a1=Q {[%clk 0:00:11.7]} 61. Rxa1 {[%clk 0:00:02.4]}
61... Bxa1 {[%clk 0:00:12.1]} 62. Ke2 {[%clk 0:00:02.1]} 62... Kc4 {[%clk
0:00:12.5]} 63. Kd1 {[%clk 0:00:02]} 63... Kd3 {[%clk 0:00:12.6]} 64. Kc1 {[%clk
0:00:02.9]} 64... e3 {[%clk 0:00:12.8]} 65. Kb1 {[%clk 0:00:02.6]} 65... e2
{[%clk 0:00:13.4]} 66. Ka2 {[%clk 0:00:03.1]} 66... e1=Q {[%clk 0:00:11.5]} 67.
Ka3 {[%clk 0:00:03.5]} 67... Qa5# {[%clk 0:00:11]} 0-1

[Event "*** Titled Tuesday Blitz"]
[Site "Chess.com"]
[Date "2021.04.20"]
[Round "6"]
[White "LittleMyMoomin"]
[Black "BashirliSaadat"]
[Result "0-1"]
[WhiteElo "1902"]
[BlackElo "2183"]
[TimeControl "180+1"]
[EndTime "11:06:49 PDT"]
[Termination "BashirliSaadat won on time"]

1. d4 {[%clk 0:02:46.1]} 1... d5 {[%clk 0:02:59]} 2. c4 {[%clk 0:02:43.3]} 2...
e6 {[%clk 0:02:59.1]} 3. Nc3 {[%clk 0:02:40.3]} 3... c6 {[%clk 0:02:59.1]} 4. b3
{[%clk 0:02:34.4]} 4... Nf6 {[%clk 0:02:57.1]} 5. Nf3 {[%clk 0:02:31.1]} 5...
Bb4 {[%clk 0:02:56.4]} 6. Bd2 {[%clk 0:02:29.3]} 6... O-O {[%clk 0:02:54.7]} 7.
e3 {[%clk 0:02:26.4]} 7... b6 {[%clk 0:02:52]} 8. Bd3 {[%clk 0:02:26]} 8... Bb7
{[%clk 0:02:51.6]} 9. a3 {[%clk 0:02:24.9]} 9... Bd6 {[%clk 0:02:50.3]} 10. O-O
{[%clk 0:02:22.9]} 10... c5 {[%clk 0:02:47.5]} 11. cxd5 {[%clk 0:02:21.5]} 11...
exd5 {[%clk 0:02:46.4]} 12. Nb5 {[%clk 0:02:05.2]} 12... Be7 {[%clk 0:02:42.8]}
13. Ne5 {[%clk 0:02:05.1]} 13... a6 {[%clk 0:02:39.6]} 14. Nc3 {[%clk
0:02:03.2]} 14... b5 {[%clk 0:02:31.3]} 15. dxc5 {[%clk 0:01:51.1]} 15... Bxc5
{[%clk 0:02:32.2]} 16. b4 {[%clk 0:01:50.5]} 16... Bd6 {[%clk 0:02:29.8]} 17.
Ng4 {[%clk 0:01:48]} 17... Nbd7 {[%clk 0:02:27]} 18. Nxf6+ {[%clk 0:01:47.5]}
18... Nxf6 {[%clk 0:02:27.9]} 19. Ne2 {[%clk 0:01:42.4]} 19... Rc8 {[%clk
0:02:26.8]} 20. Nd4 {[%clk 0:01:40.9]} 20... Be5 {[%clk 0:02:23.8]} 21. Rc1
{[%clk 0:01:31.4]} 21... Rxc1 {[%clk 0:02:14.3]} 22. Qxc1 {[%clk 0:01:29.8]}
22... Qe7 {[%clk 0:02:11.8]} 23. Nf5 {[%clk 0:01:26.1]} 23... Qe6 {[%clk
0:02:05.1]} 24. Qd1 {[%clk 0:01:17]} 24... Ne4 {[%clk 0:01:57.8]} 25. Nd4 {[%clk
0:01:09.9]} 25... Qb6 {[%clk 0:01:53]} 26. Nf3 {[%clk 0:00:39.1]} 26... Bf6
{[%clk 0:01:47.4]} 27. Qb3 {[%clk 0:00:35.9]} 27... Rd8 {[%clk 0:01:38.6]} 28.
Bc1 {[%clk 0:00:23]} 28... Rc8 {[%clk 0:01:35.5]} 29. Bb2 {[%clk 0:00:20.6]}
29... h6 {[%clk 0:01:24]} 30. Bxf6 {[%clk 0:00:20.1]} 30... Qxf6 {[%clk
0:01:24.9]} 31. Nd4 {[%clk 0:00:19]} 31... Nd2 {[%clk 0:01:20.8]} 32. Qb2 {[%clk
0:00:09.5]} 32... Nxf1 {[%clk 0:01:19]} 33. Kxf1 {[%clk 0:00:10.4]} 33... g6
{[%clk 0:01:10.5]} 34. f3 {[%clk 0:00:10.7]} 34... Qe5 {[%clk 0:01:08]} 35. Kf2
{[%clk 0:00:11]} 35... Re8 {[%clk 0:01:06.8]} 36. Qd2 {[%clk 0:00:10.3]} 36...
Bc8 {[%clk 0:01:01.7]} 37. Bb1 {[%clk 0:00:08.8]} 37... Qd6 {[%clk 0:00:58.9]}
38. h3 {[%clk 0:00:04.1]} 38... Kg7 {[%clk 0:00:57.1]} 39. Ne2 {[%clk
0:00:02.6]} 39... Be6 {[%clk 0:00:55.8]} 40. Qd4+ {[%clk 0:00:02.8]} 40... Kh7
{[%clk 0:00:53.3]} 41. Nf4 {[%clk 0:00:03.4]} 41... Rc8 {[%clk 0:00:47.7]} 42.
Qf6 {[%clk 0:00:03.4]} 42... Rg8 {[%clk 0:00:30.7]} 43. h4 {[%clk 0:00:02.7]}
43... Qd8 {[%clk 0:00:25.5]} 44. Qe5 {[%clk 0:00:01.9]} 44... Qxh4+ {[%clk
0:00:25]} 45. g3 {[%clk 0:00:01.3]} 45... Qh2+ {[%clk 0:00:24.8]} 46. Ng2 {[%clk
0:00:02]} 46... Qh1 {[%clk 0:00:20.5]} 47. e4 {[%clk 0:00:02.2]} 47... Qxb1
{[%clk 0:00:19.9]} 48. exd5 {[%clk 0:00:02.8]} 48... Qc2+ {[%clk 0:00:19.7]} 49.
Kg1 {[%clk 0:00:02.8]} 49... Bf5 {[%clk 0:00:19.2]} 50. Qe7 {[%clk 0:00:02.1]}
50... Kg7 {[%clk 0:00:18.1]} 51. d6 {[%clk 0:00:01.7]} 51... Qd1+ {[%clk
0:00:16]} 52. Kh2 {[%clk 0:00:01.9]} 52... Qxf3 {[%clk 0:00:14]} 53. Nh4 {[%clk
0:00:01.8]} 53... Qf2+ {[%clk 0:00:10.2]} 54. Kh1 {[%clk 0:00:02.5]} 54... Bg4
{[%clk 0:00:07.5]} 55. Qe5+ {[%clk 0:00:02]} 55... Kh7 {[%clk 0:00:07]} 56. Qf6
{[%clk 0:00:02.4]} 56... Qxf6 {[%clk 0:00:05.6]} 0-1

[Event "*** Titled Tuesday Blitz"]
[Site "Chess.com"]
[Date "2021.04.20"]
[Round "6"]
[White "RzayevB"]
[Black "fastestmindalive"]
[Result "1-0"]
[WhiteElo "2630"]
[BlackElo "2755"]
[TimeControl "180+1"]
[EndTime "11:06:50 PDT"]
[Termination "RzayevB won on time"]

1. e4 {[%clk 0:03:00.9]} 1... c5 {[%clk 0:02:59.4]} 2. Nf3 {[%clk 0:02:59.8]}
2... Nc6 {[%clk 0:03:00.3]} 3. g3 {[%clk 0:02:58.1]} 3... g6 {[%clk 0:02:59.6]}
4. Bg2 {[%clk 0:02:57.9]} 4... Bg7 {[%clk 0:02:58.8]} 5. O-O {[%clk 0:02:57.9]}
5... Nf6 {[%clk 0:02:58.3]} 6. Re1 {[%clk 0:02:55]} 6... O-O {[%clk 0:02:57.5]}
7. d3 {[%clk 0:02:53.6]} 7... d5 {[%clk 0:02:57.7]} 8. Nbd2 {[%clk 0:02:51.9]}
8... dxe4 {[%clk 0:02:50.5]} 9. dxe4 {[%clk 0:02:49.2]} 9... b5 {[%clk
0:02:50.5]} 10. a4 {[%clk 0:02:44.6]} 10... bxa4 {[%clk 0:02:49.2]} 11. Rxa4
{[%clk 0:02:41.5]} 11... Bb7 {[%clk 0:02:49.4]} 12. c3 {[%clk 0:02:38.6]} 12...
Ng4 {[%clk 0:02:43.1]} 13. Nc4 {[%clk 0:02:26.5]} 13... Qxd1 {[%clk 0:02:36]}
14. Rxd1 {[%clk 0:02:27.4]} 14... Rfd8 {[%clk 0:02:35.6]} 15. Re1 {[%clk
0:02:26.9]} 15... a5 {[%clk 0:02:29.3]} 16. Bf4 {[%clk 0:02:11.1]} 16... Ba6
{[%clk 0:02:23.4]} 17. Nxa5 {[%clk 0:02:02.7]} 17... Bb5 {[%clk 0:02:21.3]} 18.
Nxc6 {[%clk 0:02:02.9]} 18... Bxa4 {[%clk 0:02:21.7]} 19. Nxd8 {[%clk
0:02:02.9]} 19... Rxd8 {[%clk 0:02:22.6]} 20. h3 {[%clk 0:02:00]} 20... Nf6
{[%clk 0:02:20]} 21. Nd2 {[%clk 0:01:52.7]} 21... h6 {[%clk 0:02:08.1]} 22. Be3
{[%clk 0:01:51.3]} 22... Bc2 {[%clk 0:02:01.8]} 23. f3 {[%clk 0:01:39.8]} 23...
Nd7 {[%clk 0:01:42]} 24. Rc1 {[%clk 0:01:30.8]} 24... Bd3 {[%clk 0:01:36.2]} 25.
Bf1 {[%clk 0:01:24.8]} 25... Ne5 {[%clk 0:01:35.8]} 26. f4 {[%clk 0:01:14]}
26... Bxf1 {[%clk 0:01:32.5]} 27. Kxf1 {[%clk 0:01:14.9]} 27... Nd3 {[%clk
0:01:30.4]} 28. Rb1 {[%clk 0:01:14.3]} 28... Rb8 {[%clk 0:01:24.6]} 29. Ke2
{[%clk 0:01:01.9]} 29... Nxb2 {[%clk 0:01:21]} 30. e5 {[%clk 0:00:56.8]} 30...
Rb6 {[%clk 0:01:00.3]} 31. Bxc5 {[%clk 0:00:44.8]} 31... Rc6 {[%clk 0:00:58.7]}
32. Bxe7 {[%clk 0:00:40.3]} 32... Na4 {[%clk 0:00:56.2]} 33. Rb8+ {[%clk
0:00:39.6]} 33... Kh7 {[%clk 0:00:55.6]} 34. c4 {[%clk 0:00:38.1]} 34... g5
{[%clk 0:00:52.5]} 35. Kd3 {[%clk 0:00:36.6]} 35... gxf4 {[%clk 0:00:52.2]} 36.
gxf4 {[%clk 0:00:37.5]} 36... f6 {[%clk 0:00:44.8]} 37. Rb4 {[%clk 0:00:35]}
37... Nb6 {[%clk 0:00:33.8]} 38. exf6 {[%clk 0:00:27.8]} 38... Bxf6 {[%clk
0:00:34.7]} 39. Bxf6 {[%clk 0:00:27.7]} 39... Rxf6 {[%clk 0:00:35.6]} 40. Ne4
{[%clk 0:00:27.8]} 40... Rc6 {[%clk 0:00:29.9]} 41. f5 {[%clk 0:00:26.2]} 41...
h5 {[%clk 0:00:23.4]} 42. Kd4 {[%clk 0:00:26]} 42... h4 {[%clk 0:00:21.9]} 43.
c5 {[%clk 0:00:25.5]} 43... Nc8 {[%clk 0:00:21.1]} 44. Rb7+ {[%clk 0:00:25]}
44... Kh6 {[%clk 0:00:18.5]} 45. Kd5 {[%clk 0:00:23.8]} 45... Ra6 {[%clk
0:00:18]} 46. Rc7 {[%clk 0:00:21.5]} 46... Na7 {[%clk 0:00:14.9]} 47. f6 {[%clk
0:00:21.5]} 47... Ra1 {[%clk 0:00:13.6]} 48. f7 {[%clk 0:00:20.6]} 48... Kg7
{[%clk 0:00:13.3]} 49. Nd6 {[%clk 0:00:19.4]} 49... Kf8 {[%clk 0:00:10.1]} 50.
Rb7 {[%clk 0:00:17.1]} 50... Rd1+ {[%clk 0:00:09.2]} 51. Ke6 {[%clk 0:00:16.2]}
51... Nc6 {[%clk 0:00:09.8]} 52. Rb6 {[%clk 0:00:11.8]} 52... Re1+ {[%clk
0:00:07.6]} 53. Kf6 {[%clk 0:00:10.6]} 53... Rf1+ {[%clk 0:00:07.5]} 54. Nf5
{[%clk 0:00:09.4]} 54... Nd8 {[%clk 0:00:02.3]} 55. Rb8 {[%clk 0:00:09.1]} 55...
Rd1 {[%clk 0:00:02.7]} 56. Kg5 {[%clk 0:00:05.2]} 1-0

[Event "*** Titled Tuesday Blitz"]
[Site "Chess.com"]
[Date "2021.04.20"]
[Round "6"]
[White "biostatistician"]
[Black "AwareIdea"]
[Result "1/2-1/2"]
[WhiteElo "2606"]
[BlackElo "2471"]
[TimeControl "180+1"]
[EndTime "11:06:55 PDT"]
[Termination "Game drawn - insufficient material"]

1. d4 {[%clk 0:02:53.4]} 1... Nf6 {[%clk 0:02:59.4]} 2. Nf3 {[%clk 0:02:54.3]}
2... e6 {[%clk 0:02:59.5]} 3. c4 {[%clk 0:02:54.8]} 3... d5 {[%clk 0:02:59.7]}
4. Bg5 {[%clk 0:02:55]} 4... Bb4+ {[%clk 0:02:56.9]} 5. Nc3 {[%clk 0:02:54.2]}
5... dxc4 {[%clk 0:02:56]} 6. e4 {[%clk 0:02:50.7]} 6... b5 {[%clk 0:02:54.7]}
7. a4 {[%clk 0:02:51.1]} 7... c6 {[%clk 0:02:52.9]} 8. e5 {[%clk 0:02:47.2]}
8... h6 {[%clk 0:02:52.5]} 9. exf6 {[%clk 0:02:47.8]} 9... hxg5 {[%clk
0:02:52.1]} 10. fxg7 {[%clk 0:02:48.7]} 10... Rg8 {[%clk 0:02:51.3]} 11. h4
{[%clk 0:02:47.1]} 11... g4 {[%clk 0:02:47]} 12. Ne5 {[%clk 0:02:47.1]} 12...
Rxg7 {[%clk 0:02:45.2]} 13. Be2 {[%clk 0:02:45.6]} 13... Bb7 {[%clk 0:02:42.4]}
14. O-O {[%clk 0:02:45.6]} 14... a6 {[%clk 0:02:40.8]} 15. h5 {[%clk 0:02:43.3]}
15... Nd7 {[%clk 0:02:38.7]} 16. Nxg4 {[%clk 0:02:24.5]} 16... Qg5 {[%clk
0:02:30.9]} 17. f4 {[%clk 0:02:20.8]} 17... Qh4 {[%clk 0:02:24.6]} 18. Qe1
{[%clk 0:02:19.7]} 18... Rxg4 {[%clk 0:02:14.6]} 19. Qxh4 {[%clk 0:02:08.1]}
19... Rxh4 {[%clk 0:02:14]} 20. g3 {[%clk 0:02:08.6]} 20... Rh3 {[%clk
0:01:49.7]} 21. Kg2 {[%clk 0:02:08.4]} 21... c5+ {[%clk 0:01:49.9]} 22. Kxh3
{[%clk 0:02:08.6]} 22... cxd4 {[%clk 0:01:49.8]} 23. Nd1 {[%clk 0:02:07.4]}
23... Rc8 {[%clk 0:01:33.6]} 24. axb5 {[%clk 0:02:06.8]} 24... axb5 {[%clk
0:01:34.5]} 25. Ra7 {[%clk 0:02:05.6]} 25... Be4 {[%clk 0:01:23.2]} 26. Nf2
{[%clk 0:02:02.6]} 26... d3 {[%clk 0:01:16.2]} 27. Bd1 {[%clk 0:02:02.8]} 27...
Bh7 {[%clk 0:01:02.8]} 28. g4 {[%clk 0:02:01.1]} 28... Bc5 {[%clk 0:00:58.4]}
29. Rb7 {[%clk 0:02:00.3]} 29... b4 {[%clk 0:00:55.7]} 30. Ba4 {[%clk
0:02:00.6]} 30... Rd8 {[%clk 0:00:51.7]} 31. f5 {[%clk 0:01:42.3]} 31... exf5
{[%clk 0:00:47.8]} 32. g5 {[%clk 0:01:36.4]} 32... f4 {[%clk 0:00:46.3]} 33.
Re1+ {[%clk 0:01:24.4]} 33... Kf8 {[%clk 0:00:38.2]} 34. Ne4 {[%clk 0:01:18]}
34... Bf5+ {[%clk 0:00:34.1]} 35. Kh4 {[%clk 0:01:17.4]} 35... Be3 {[%clk
0:00:21.1]} 36. Bc6 {[%clk 0:00:54.6]} 36... Ne5 {[%clk 0:00:17.7]} 37. g6
{[%clk 0:00:30.3]} 37... fxg6 {[%clk 0:00:17.2]} 38. h6 {[%clk 0:00:29.7]} 38...
g5+ {[%clk 0:00:13.1]} 39. Kxg5 {[%clk 0:00:29.9]} 39... Bxe4 {[%clk 0:00:08.3]}
40. Bxe4 {[%clk 0:00:30.8]} 40... Nf7+ {[%clk 0:00:08.5]} 41. Kh5 {[%clk
0:00:23]} 41... Nxh6 {[%clk 0:00:08]} 42. Kxh6 {[%clk 0:00:22.6]} 42... f3+
{[%clk 0:00:08.5]} 43. Kg6 {[%clk 0:00:21.3]} 43... f2 {[%clk 0:00:06.5]} 44.
Rf1 {[%clk 0:00:21.9]} 44... d2 {[%clk 0:00:06.4]} 45. Bf3 {[%clk 0:00:22.1]}
45... c3 {[%clk 0:00:06.5]} 46. bxc3 {[%clk 0:00:21.9]} 46... bxc3 {[%clk
0:00:07.4]} 47. Rc7 {[%clk 0:00:22.5]} 47... Bd4 {[%clk 0:00:05.9]} 48. Kf5
{[%clk 0:00:21.5]} 48... Re8 {[%clk 0:00:05.4]} 49. Bh5 {[%clk 0:00:17]} 49...
Re1 {[%clk 0:00:05.3]} 50. Rxf2 {[%clk 0:00:07.7]} 50... Bxf2 {[%clk 0:00:04.6]}
51. Rxc3 {[%clk 0:00:08.6]} 51... d1=Q {[%clk 0:00:02.7]} 52. Bxd1 {[%clk
0:00:08.9]} 52... Rxd1 {[%clk 0:00:03.6]} 53. Kf4 {[%clk 0:00:08]} 53... Rd4+
{[%clk 0:00:04.5]} 54. Kf3 {[%clk 0:00:08.5]} 54... Be1 {[%clk 0:00:05.1]} 55.
Re3 {[%clk 0:00:08.1]} 55... Rd5 {[%clk 0:00:05.2]} 56. Re4 {[%clk 0:00:09]}
56... Rd7 {[%clk 0:00:06.1]} 57. Rxe1 {[%clk 0:00:09.2]} 57... Rf7+ {[%clk
0:00:07]} 58. Ke2 {[%clk 0:00:09.3]} 58... Re7+ {[%clk 0:00:07.9]} 59. Kd2
{[%clk 0:00:09.7]} 59... Rxe1 {[%clk 0:00:08.8]} 60. Kxe1 {[%clk 0:00:10.2]}
1/2-1/2